bitfinex-derivatives/quotes_ETHF0:USTF0_20250404
["timestamp","ask_amount","ask_price","bid_price","bid_amount"]
[1743792913084,3.936,1810.0,1809.9,2.52515]
[1743792913384,4.48880001,1810.2,1809.9,2.52513]
[1743792913588,1.10537,1810.1,1809.9,1.4197]
[1743792913781,4.48880001,1810.2,1809.9,2.5251]
[1743792913986,1.10534,1810.1,1810.0,0.6983]
[1743792914181,1.10534,1810.1,1810.0,2.2235]
[1743792914485,1.1055,1809.9,1809.6,45.84129]
[1743792914791,1.10553,1809.8,1809.7,2.63077]
[1743792915486,5.0415,1809.9,1809.7,2.63077]
[1743792915692,5.0415,1809.9,1809.6,45.434]
[1743792915693,8.2493,1809.9,1809.8,1.5252]
[1743792915888,8.2493,1809.9,1809.6,1.4262]
[1743792915889,9.75797,1809.9,1809.6,1.4262]
[1743792916086,3.12964001,1809.8,1809.7,1.5386]
[1743792916285,2.02410001,1809.8,1809.7,1.5386]
[1743792916794,0.55280001,1809.8,1809.7,2.64417]
[1743792916993,3.936,1809.9,1809.8,1.10551]
[1743792917195,5.04145,1809.9,1809.8,1.5386]
[1743792917396,9.16790001,1809.9,1809.6,2.53178]
[1743792917704,2.57684,1809.8,1809.6,1.10562]
[1743792917998,7.69660001,1809.9,1809.7,2.64417]
[1743792918199,10.27339001,1809.9,1809.7,1.5386]
[1743792918395,9.16790001,1809.9,1809.8,1.5386]
[1743792918602,10.27335001,1809.9,1809.8,1.5386]
[1743792919004,7.1438,1809.9,1809.8,2.64411]
[1743792919202,7.1438,1809.9,1809.8,1.5386]
[1743792919404,9.72475,1809.9,1809.8,1.5386]
[1743792919599,1.10552,1809.8,1809.6,1.10559]
[1743792919800,1.4755,1809.8,1809.7,1.10557]
[1743792920497,7.1438,1809.9,1809.8,1.10551]
[1743792921605,3.936,1809.9,1809.8,1.10551]
[1743792921903,3.936,1809.9,1809.7,1.446]
[1743792922105,3.2078,1809.8,1809.5,0.7179]
[1743792922296,1.10561,1809.7,1809.5,3.37058]
[1743792922493,1.10554,1809.8,1809.6,2.65263]
[1743792922698,2.52814,1809.8,1809.7,1.547]
[1743792922897,5.04146,1809.9,1809.7,2.65257]
[1743792923200,3.936,1809.9,1809.8,1.10551]
[1743792923397,4.58150001,1810.0,1809.9,1.10545]
[1743792923701,8.51750001,1810.0,1809.8,1.547]
[1743792924206,7.41210001,1810.0,1809.8,1.547]
[1743792924403,8.51750001,1810.0,1809.8,1.547]
[1743792924697,0.55280001,1810.1,1809.8,1.547]
[1743792924698,1.65817001,1810.1,1809.8,1.547]
[1743792924900,4.48880001,1810.1,1809.9,1.4762]
[1743792925106,1.65818001,1810.1,1810.0,1.547]
[1743792925305,5.59418001,1810.1,1810.0,1.547]
[1743792926503,3.936,1810.1,1810.0,2.65239]
[1743792926706,1.83154,1810.3,1810.1,1.10533]
[1743792926901,5.0412,1810.3,1810.1,2.61293]
[1743792927099,0.55280001,1810.3,1810.2,1.10527]
[1743792927302,3.936,1810.4,1810.3,1.1052]
[1743792927512,3.936,1810.4,1810.3,1.8226]
[1743792927706,3.936,1810.4,1810.3,2.5338]
[1743792927906,5.04114,1810.4,1810.3,2.5338]
[1743792928508,5.04114,1810.4,1810.3,1.4286]
[1743792928911,5.04114,1810.4,1810.3,2.9491]
[1743792929114,8.24894,1810.4,1810.3,1.5205]
[1743792929318,9.65954,1810.4,1810.3,1.5205]
[1743792929615,5.04114,1810.4,1810.3,1.5205]
[1743792931513,5.04114,1810.4,1810.3,2.6257]
[1743792931514,3.936,1810.4,1810.3,2.6257]
[1743792932407,1.66619903,1810.5,1810.3,2.6257]
[1743792932606,1.66619903,1810.5,1810.4,1.4085]
[1743792932816,0.56106903,1810.5,1810.4,1.4085]
[1743792933019,0.56106903,1810.5,1810.4,2.51364]
[1743792933515,0.00113593,1810.5,1810.4,8.98517175]
[1743792934518,0.00113593,1810.5,1810.4,9.42971086]
[1743792935109,0.00113593,1810.5,1810.4,10.47237175]
[1743792935313,0.00113593,1810.5,1810.4,4.76457175]
[1743792935513,0.00113593,1810.5,1810.4,7.97237175]
[1743792935708,1.10621593,1810.5,1810.4,2.1394]
[1743792935916,0.00113593,1810.5,1810.4,2.51364]
[1743792936117,1.65901594,1810.5,1810.4,2.51364]
[1743792936420,0.00113593,1810.5,1810.4,2.51364]
[1743792936621,0.55393594,1810.5,1810.4,2.51364]
[1743792936815,1.65901594,1810.5,1810.4,1.4085]
[1743792937115,1.10514,1810.4,1810.3,0.00717155]
[1743792937321,1.10514,1810.4,1810.3,1.11234155]
[1743792937322,3.935,1810.4,1810.3,1.11234155]
[1743792937518,5.4436,1810.4,1810.3,2.61027155]
[1743792938317,3.935,1810.4,1810.3,2.61027155]
[1743792938517,0.55393594,1810.5,1810.4,1.10514]
[1743792938717,0.00113593,1810.5,1810.4,3.31024]
[1743792939115,0.00113593,1810.5,1810.4,4.07394]
[1743792939311,0.00113593,1810.5,1810.4,10.54463829]
[1743792940120,0.00113593,1810.5,1810.4,51.34454932]
[1743792941510,34.829,1811.5,1810.4,56.10940932]
[1743792941716,9.16,1812.6,1811.7,1.1043]
[1743792941717,38.0318,1812.1,1811.7,1.1043]
[1743792941912,1.10423,1811.9,1811.5,3.2078]
[1743792942118,7.73133,1812.0,1811.8,1.10429]
[1743792942418,7.73133,1812.0,1811.9,1.4755]
[1743792942611,1.10433,1811.8,1811.5,1.4848]
[1743792942818,1.10433,1811.8,1811.6,2.5799]
[1743792943119,1.10428,1811.9,1811.7,1.4755]
[1743792943315,4.31208,1811.9,1811.7,1.4755]
[1743792943623,1.10428,1811.9,1811.7,1.4755]
[1743792943816,1.10429,1811.8,1811.7,1.4755]
[1743792944321,1.10429,1811.8,1811.5,0.00826902]
[1743792944525,8.24517,1811.7,1811.5,0.00826902]
[1743792944823,4.6642,1811.6,1811.5,1.11273902]
[1743792945826,4.6642,1811.6,1811.5,0.00826902]
[1743792946025,4.6642,1811.6,1811.5,1.11273902]
[1743792946224,4.6642,1811.6,1811.5,0.00826902]
[1743792946425,8.26861,1811.6,1811.5,0.00826902]
[1743792946722,1.10458,1811.4,1811.2,1.10464]
[1743792946924,1.10469,1811.2,1810.9,1.10478]
[1743792947124,0.7312,1811.1,1811.0,1.10478]
[1743792947425,4.49180001,1811.1,1810.9,1.5419]
[1743792947724,4.49180001,1811.1,1811.0,1.10478]
[1743792947919,4.49180001,1811.1,1810.9,2.64669]
[1743792948121,4.49180001,1811.1,1810.8,1.10488]
[1743792948325,1.1048,1811.0,1810.8,1.10488]
[1743792948628,1.10491,1810.8,1810.5,1.5302]
[1743792948820,7.1398,1810.9,1810.6,1.105]
[1743792949122,7.1398,1810.9,1810.5,2.64697]
[1743792949323,3.2078,1810.7,1810.6,1.10502]
[1743792949519,3.2078,1810.7,1810.6,1.4298]
[1743792949913,4.31276,1810.7,1810.6,1.4298]
[1743792950321,1.10516,1810.4,1810.1,1.10531]
[1743792950520,3.2078,1810.3,1809.8,0.7546]
[1743792950824,4.31325,1809.9,1809.5,1.84896]
[1743792951021,8.24525,1809.9,1809.6,1.4298]
[1743792951224,7.1398,1809.9,1809.6,42.2298]
[1743792951418,3.2078,1809.7,1809.6,42.2298]
[1743792951620,4.31337,1809.7,1809.6,40.8]
[1743792951822,4.31337,1809.7,1809.4,1.4298]
[1743792952324,3.2078,1809.5,1809.4,1.4298]
[1743792952525,3.2078,1809.5,1809.0,8.57748764]
[1743792952728,1.10594,1809.1,1809.0,8.57748764]
[1743792953030,3.933,1809.1,1809.0,8.57748764]
[1743792953424,3.933,1809.1,1809.0,1.4395]
[1743792953824,5.03894,1809.1,1809.0,1.4395]
[1743792954024,5.03894,1809.1,1808.5,5.87]
[1743792954025,1.10608,1808.9,1808.5,5.87]
[1743792954233,1.10608,1808.9,1808.0,2.7664]
[1743792954234,4.31398,1808.7,1808.3,1.4979]
[1743792954530,8.24698,1808.7,1808.4,1.4395]
[1743792954732,9.68358,1808.7,1808.4,1.4395]
[1743792954925,6.47578,1808.7,1808.4,1.4395]
[1743792955125,9.68358,1808.7,1808.4,1.4395]
[1743792955330,1.10627,1808.6,1808.4,1.4395]
[1743792955530,1.4366,1808.6,1808.4,1.4395]
[1743792955729,2.54284,1808.6,1808.4,1.4395]
[1743792955928,1.4366,1808.6,1808.4,1.4395]
[1743792956132,2.54285,1808.6,1808.4,1.4395]
[1743792956530,0.5536,1808.5,1808.4,1.4395]
[1743792956729,1.6599,1808.5,1808.4,1.4395]
[1743792957030,2.0629,1808.5,1808.4,1.4395]
[1743792958136,3.1692,1808.5,1808.4,1.4395]
[1743792958341,1.10639,1808.4,1808.1,40.8]
[1743792958531,1.5093,1808.3,1808.1,43.38855]
[1743792958730,1.5093,1808.3,1808.2,1.4032]
[1743792960939,3.935,1808.5,1808.2,1.4032]
[1743792961129,1.10643,1808.3,1808.2,1.4032]
[1743792961437,4.31426,1808.3,1808.2,40.8]
[1743792961634,2.6137,1808.4,1808.2,40.8]
[1743792961836,1.10643,1808.3,1808.2,40.8]
[1743792962030,2.55453,1808.3,1808.2,40.8]
[1743792962536,1.4481,1808.3,1808.0,1.4032]
[1743792962737,2.55453,1808.3,1808.0,2.50977]
[1743792962938,2.55453,1808.3,1808.1,40.8]
[1743792963137,1.4481,1808.3,1808.2,1.5447]
[1743792963535,3.2078,1808.5,1808.2,1.5447]
[1743792963741,3.935,1808.5,1808.2,1.5447]
[1743792964031,3.935,1808.5,1808.4,1.10637]
[1743792964636,3.2078,1808.7,1808.6,1.10624]
[1743792964838,0.5536,1808.8,1808.7,1.10618]
[1743792965335,0.5536,1808.8,1808.7,41.90618]
[1743792965828,0.5536,1808.8,1808.7,40.8]
[1743792966029,0.5536,1809.0,1808.7,1.10618]
[1743792966344,1.10594,1809.1,1808.9,1.10603]
[1743792966535,1.10594,1809.1,1809.0,42.2069]
[1743792966735,1.10594,1809.1,1809.0,1.4069]
[1743792967038,4.31374,1809.1,1809.0,1.4069]
[1743792967233,5.71194,1809.1,1809.0,1.4069]
[1743792967937,4.606,1809.1,1809.0,1.4069]
[1743792968132,0.00826902,1809.2,1809.1,1.10594]
[1743792968741,0.00826902,1809.2,1809.1,6.81374]
[1743792968937,35.40380001,1809.5,1809.3,1.10577]
[1743792969139,0.55280001,1809.5,1809.4,2.51404]
[1743792969333,0.55280001,1809.5,1809.4,1.4083]
[1743792969537,5.4625,1809.6,1809.4,2.51404]
[1743792969737,1.5265,1809.6,1809.4,2.51404]
[1743792969932,1.5265,1809.6,1809.4,1.4083]
[1743792970141,1.5265,1809.6,1809.5,1.10569]
[1743792970338,3.94429278,1809.7,1809.6,1.10563]
[1743792970639,0.00829278,1809.7,1809.6,1.10563]
[1743792970835,0.00829278,1809.7,1809.6,1.4083]
[1743792971031,0.00829278,1809.7,1809.3,1.16546268]
[1743792971032,3.21609278,1809.7,1809.0,3.49247278]
[1743792971231,1.10569,1809.5,1809.4,1.4727]
[1743792971431,1.10569,1809.5,1809.0,0.72749278]
[1743792971432,1.1058,1809.4,1809.1,1.10591]
[1743792971641,3.935,1809.3,1809.2,1.10588]
[1743792972838,3.935,1809.3,1809.1,2.5786]
[1743792973034,3.935,1809.3,1809.2,1.10588]
[1743792973343,3.935,1809.3,1809.2,2.57858]
[1743792974138,4.31354,1809.5,1809.3,1.1058]
[1743792974333,8.24854,1809.5,1809.3,1.1058]
[1743792974533,8.2485,1809.5,1809.3,1.10577]
[1743792974739,8.2485,1809.5,1809.4,1.4222]
[1743792974941,7.1428,1809.5,1809.4,1.4222]
[1743792975136,7.1428,1809.5,1809.4,2.52795]
[1743792975529,3.2078,1809.5,1809.4,2.52795]
[1743792975736,3.21609278,1809.7,1809.5,1.10569]
[1743792975938,0.00829278,1809.7,1809.6,2.52783]
[1743792976440,0.56109279,1809.7,1809.6,2.52783]
[1743792977039,0.00829278,1809.7,1809.6,2.52783]
[1743792977437,0.00829278,1809.7,1809.6,1.4222]
[1743792977843,1.54959278,1809.7,1809.6,2.52783]
[1743792978038,4.75739278,1809.7,1809.5,1.10563]
[1743792978248,1.54959278,1809.7,1809.6,1.10563]
[1743792978439,0.00829278,1809.7,1809.6,1.10563]
[1743792979038,3.21609278,1809.7,1809.4,1.3972]
[1743792979345,1.10578,1809.4,1809.0,0.72749278]
[1743792979642,8.6831,1809.3,1809.2,1.10588]
[1743792979848,5.4753,1809.3,1809.2,1.10588]
[1743792980345,3.934,1809.3,1809.2,1.10588]
[1743792980646,7.1418,1809.3,1809.2,1.10588]
[1743792980843,3.934,1809.3,1809.2,1.10588]
[1743792981235,3.934,1809.3,1809.1,1.3972]
[1743792981439,3.934,1809.3,1809.2,1.10588]
[1743792983044,5.3866,1809.5,1809.2,1.10588]
[1743792983246,6.49232,1809.5,1809.3,1.5096]
[1743792983444,1.10587,1809.3,1809.0,0.72749278]
[1743792983646,7.8885,1809.5,1809.0,1.51789278]
[1743792983841,0.7551,1809.6,1809.4,1.10575]
[1743792984039,5.06853,1809.6,1809.5,1.5096]
[1743792984241,1.10575,1809.5,1809.2,1.10584]
[1743792984435,1.5102,1809.5,1809.2,1.5096]
[1743792984647,7.8969,1809.6,1809.4,1.10575]
[1743792984846,5.79478,1809.6,1809.5,1.5096]
[1743792985049,5.79478,1809.6,1809.2,1.5096]
[1743792985050,1.10585,1809.3,1809.2,1.5096]
[1743792985242,8.24765,1809.3,1809.2,1.5096]
[1743792985743,1.10592,1809.2,1809.0,1.11429278]
[1743792985940,7.1418,1809.3,1809.0,0.00829278]
[1743792986244,4.31374,1809.1,1809.0,0.00829278]
[1743792986451,1.10615,1808.8,1808.5,9.0778]
[1743792986750,9.90696,1808.9,1808.4,1.10632]
[1743792986949,1.1063,1808.5,1808.4,40.8]
[1743792987150,3.2078,1808.5,1808.2,0.7598]
[1743792987341,1.10645,1808.3,1808.1,4.31433]
[1743792987542,1.10649,1808.2,1808.1,3.2078]
[1743792987748,2.61667278,1808.4,1808.2,2.51558]
[1743792988046,2.61667278,1808.4,1808.2,2.51554]
[1743792988248,2.61669278,1808.4,1808.2,1.4091]
[1743792988449,5.04043,1808.3,1808.2,1.4091]
[1743792988652,1.10649,1808.2,1808.1,3.2078]
[1743792988851,1.10649,1808.2,1807.8,2.5158]
[1743792988852,1.10656,1808.1,1807.8,2.5158]
[1743792989046,1.502,1808.0,1807.8,1.4091]
[1743792989245,5.436,1808.0,1807.9,1.4215]
[1743792989444,5.436,1808.0,1807.9,2.52817]
[1743792989646,3.934,1808.0,1807.9,2.52817]
[1743792989845,1.5479,1808.3,1808.1,1.10652]
[1743792990050,2.65433,1808.3,1808.2,1.4215]
[1743792990246,6.58833,1808.3,1808.2,1.4215]
[1743792990446,3.934,1808.3,1808.2,2.52799]
[1743792990647,0.00829278,1808.4,1808.3,1.10643]
[1743792990853,0.00829278,1808.4,1808.3,4.31423]
[1743792991154,0.00829278,1808.4,1808.3,5.07553315]
[1743792991362,0.00829278,1808.4,1808.3,7.57553315]
[1743792991646,0.00829278,1808.4,1808.3,9.05273315]
[1743792992152,0.00829278,1808.4,1808.3,6.55273315]
[1743792993951,0.00829278,1808.4,1808.3,6.55333443]
[1743792994456,0.00829278,1808.4,1808.3,47.35333443]
[1743792994654,0.00829278,1808.4,1808.3,49.85333443]
[1743792995052,0.00829278,1808.4,1808.3,6.55333443]
[1743792995250,0.00829278,1808.4,1808.3,4.31423]
[1743792996253,0.00829278,1808.4,1808.3,5.07599602]
[1743792996455,0.00829278,1808.4,1808.3,5.07596118]
[1743792997048,0.00829278,1808.4,1808.3,4.31423]
[1743792997254,0.00829278,1808.4,1808.3,1.86807276]
[1743792997554,0.00829278,1808.4,1808.3,1.8680538]
[1743792998060,0.00829278,1808.4,1808.3,1.86807908]
[1743792999061,0.00829278,1808.4,1808.3,1.10643]
[1743793000963,0.00829278,1808.4,1808.3,1.86799409]
[1743793001356,2.78e-06,1808.4,1808.3,4.36799409]
[1743793001558,2.78e-06,1808.4,1808.3,5.10599409]
[1743793002460,2.78e-06,1808.4,1808.3,2.60599409]
[1743793002755,2.78e-06,1808.4,1808.3,1.86799409]
[1743793002955,2.78e-06,1808.4,1808.3,1.10643]
[1743793004965,2.78e-06,1808.4,1808.3,41.90643]
[1743793005461,2.78e-06,1808.4,1808.3,45.1682714]
[1743793005770,2.78e-06,1808.4,1808.3,46.64584555]
[1743793006466,2.78e-06,1808.4,1808.3,49.81903]
[1743793006656,2.78e-06,1808.4,1808.3,50.58111295]
[1743793008353,2.78e-06,1808.4,1808.3,50.58192901]
[1743793010067,2.78e-06,1808.4,1808.3,5.84692901]
[1743793010375,2.78e-06,1808.4,1808.3,1.86932901]
[1743793010665,2.78e-06,1808.4,1808.3,5.07712901]
[1743793011059,2.78e-06,1808.4,1808.3,4.31423]
[1743793011260,2.78e-06,1808.4,1808.3,5.07773185]
[1743793013861,2.78e-06,1808.4,1808.3,5.0783953]
[1743793014465,2.78e-06,1808.4,1808.3,45.8783953]
[1743793016567,2.78e-06,1808.4,1808.3,45.87946115]
[1743793017368,2.78e-06,1808.4,1808.3,5.07946115]
[1743793017569,2.78e-06,1808.4,1808.3,5.07949233]
[1743793017871,1.44060278,1808.4,1808.3,5.07949233]
[1743793018675,2.78e-06,1808.4,1808.3,5.07949233]
[1743793019368,2.78e-06,1808.4,1808.3,5.0800237]
[1743793019771,2.78e-06,1808.4,1808.3,7.5800237]
[1743793019969,2.78e-06,1808.4,1808.3,48.3800237]
[1743793020275,2.78e-06,1808.4,1808.3,45.8800237]
[1743793020871,2.78e-06,1808.4,1808.3,5.08029989]
[1743793021079,2.17270278,1808.4,1808.3,5.08029989]
[1743793021278,3.27907278,1808.4,1808.3,5.08029989]
[1743793021574,2.91300278,1808.4,1808.3,5.08029989]
[1743793023278,6.12080278,1808.4,1808.3,1.10643]
[1743793023578,2.91300278,1808.4,1808.3,1.10643]
[1743793024076,6.12080278,1808.4,1808.3,1.10643]
[1743793024277,1.10643,1808.3,1808.2,0.00829278]
[1743793024581,1.4662,1808.3,1808.2,1.11475278]
[1743793024877,1.4662,1808.3,1808.2,1.8804539]
[1743793025277,1.4662,1808.3,1808.2,1.11475278]
[1743793026481,1.50530278,1808.4,1808.3,1.10643]
[1743793026879,2.91950278,1808.4,1808.3,1.10643]
[1743793027082,6.12730278,1808.4,1808.3,1.10643]
[1743793027384,2.91950278,1808.4,1808.3,1.10643]
[1743793028283,2.17920278,1808.4,1808.3,1.10643]
[1743793028581,2.78e-06,1808.4,1808.3,5.07954638]
[1743793028783,2.78e-06,1808.4,1808.3,2.63654638]
[1743793029085,2.78e-06,1808.4,1808.3,1.87174638]
[1743793029477,2.78e-06,1808.4,1808.3,1.10643]
[1743793029786,2.78e-06,1808.4,1808.3,1.87169788]
[1743793030683,1.10643,1808.3,1808.2,0.00829278]
[1743793030979,3.9311,1808.3,1807.7,5.97466]
[1743793031174,3.33504,1808.2,1808.1,1.10655]
[1743793031578,1.10655,1808.1,1808.0,1.10656]
[1743793031885,5.4265,1808.1,1808.0,1.10656]
[1743793032180,0.7233,1808.3,1808.0,0.76522282]
[1743793032379,2.78e-06,1808.4,1808.3,1.10643]
[1743793032586,2.78e-06,1808.4,1808.3,5.07945282]
[1743793034384,1.10637278,1808.4,1808.3,1.87165282]
[1743793034783,1.10637278,1808.4,1808.3,1.10643]
[1743793034985,1.51810278,1808.4,1808.3,1.87154158]
[1743793035381,2.99620278,1808.4,1808.3,1.87154158]
[1743793035984,3.54980278,1808.4,1808.3,1.10643]
[1743793036183,2.99620278,1808.4,1808.3,1.87150557]
[1743793036785,2.99620278,1808.4,1808.3,1.87152859]
[1743793037787,4.10257278,1808.4,1808.3,1.87152859]
[1743793038183,2.99620278,1808.4,1808.3,1.10643]
[1743793038389,1.10647,1808.3,1808.2,1.10644]
[1743793038686,2.57917,1808.3,1808.2,1.10649]
[1743793038887,1.4727,1808.3,1808.2,1.10649]
[1743793039092,5.78693,1808.3,1808.2,1.10649]
[1743793039391,2.57913,1808.3,1808.2,1.10649]
[1743793039589,1.4727,1808.3,1808.2,1.10649]
[1743793041392,1.4727,1808.3,1808.2,1.87210121]
[1743793041580,1.4727,1808.3,1808.2,1.87210381]
[1743793041785,1.51810278,1808.4,1808.3,1.10643]
[1743793041990,1.51810278,1808.4,1808.3,2.60913]
[1743793042594,1.51810278,1808.4,1808.3,1.10643]
[1743793042886,3.01320278,1808.4,1808.2,1.10644]
[1743793043094,4.11960278,1808.4,1808.2,1.10649]
[1743793043292,4.11960278,1808.4,1808.1,2.2669]
[1743793043485,1.10644,1808.3,1808.2,1.10646]
[1743793043685,2.60154,1808.3,1808.2,1.10646]
[1743793043885,1.4951,1808.3,1808.2,1.10646]
[1743793044093,1.1065,1808.2,1808.1,1.10652]
[1743793044392,5.0395,1808.2,1808.1,1.10652]
[1743793044581,6.561,1808.2,1808.1,1.10652]
[1743793044785,5.4545,1808.2,1808.1,1.10652]
[1743793045386,5.4545,1808.2,1807.9,1.10665]
[1743793045593,1.10664,1808.0,1807.8,2.58682]
[1743793045890,1.5215,1807.9,1807.8,2.58682]
[1743793046491,0.7591,1808.0,1807.9,1.10667]
[1743793046694,0.7591,1808.0,1807.9,2.58677]
[1743793046992,1.86571,1808.0,1807.9,1.4801]
[1743793047185,3.29971,1808.0,1807.9,1.4801]
[1743793047383,3.933,1808.2,1808.1,1.10655]
[1743793047590,5.74824,1808.3,1808.2,1.10649]
[1743793048184,5.74824,1808.3,1808.1,1.1065]
[1743793048393,5.74824,1808.3,1808.2,1.5023]
[1743793048990,1.10655,1808.1,1808.0,1.10657]
[1743793049287,4.6418,1808.3,1808.0,1.10657]
[1743793049493,1.10654,1808.2,1808.1,1.10655]
[1743793050091,1.10654,1808.2,1808.0,1.10657]
[1743793050392,3.933,1808.1,1807.7,3.9177]
[1743793050695,1.10673,1807.8,1807.7,4.31456]
[1743793050882,1.10673,1807.8,1807.7,3.97321663]
[1743793051087,1.10679,1807.7,1807.6,1.4054]
[1743793051287,2.63109,1807.7,1807.6,3.27772295]
[1743793051495,1.5243,1807.7,1807.6,2.51225]
[1743793052188,4.7321,1807.7,1807.3,1.10702]
[1743793052389,1.10692,1807.5,1807.4,1.4054]
[1743793052596,3.933,1807.5,1807.4,2.51238]
[1743793052891,5.03992,1807.5,1807.4,1.4054]
[1743793053095,3.933,1807.5,1807.4,2.51238]
[1743793053490,3.933,1807.5,1807.4,1.4054]
[1743793053892,5.03992,1807.5,1807.4,2.51238]
[1743793054190,3.933,1807.5,1807.4,2.51238]
[1743793054388,4.6834,1807.7,1807.6,1.10685]
[1743793054587,3.933,1807.7,1807.6,1.10685]
[1743793054792,5.06938,1807.9,1807.5,2.76727]
[1743793055089,5.03973,1807.8,1807.7,1.10678]
[1743793055497,3.933,1807.8,1807.7,1.10679]
[1743793056388,4.4866,1807.8,1807.7,2.50769]
[1743793056590,0.5536,1808.0,1807.7,1.4009]
[1743793056789,1.66021,1808.0,1807.9,1.10663]
[1743793057192,3.7614,1808.0,1807.7,1.4009]
[1743793057395,1.10673,1807.8,1807.7,1.4009]
[1743793057688,6.57239,1807.9,1807.7,1.4009]
[1743793058085,6.57239,1807.9,1807.8,1.10673]
[1743793058291,5.03969,1807.9,1807.8,1.10673]
[1743793058492,5.03969,1807.9,1807.7,1.4009]
[1743793058695,5.03969,1807.9,1807.8,1.10673]
[1743793058895,3.933,1807.9,1807.8,1.10673]
[1743793059396,5.63141,1808.2,1807.7,1.4009]
[1743793059595,9.56441,1808.2,1808.0,1.10661]
[1743793059804,0.5536,1808.2,1808.1,2.61265]
[1743793060092,1.10637278,1808.4,1808.1,4.27236]
[1743793060389,2.78e-06,1808.4,1808.2,2.2372]
[1743793060698,1.10642278,1808.4,1808.3,1.10643]
[1743793061196,2.78e-06,1808.4,1808.3,1.10643]
[1743793061389,1.10637278,1808.4,1808.3,1.10643]
[1743793061585,2.78e-06,1808.4,1808.3,1.10643]
[1743793062294,2.78e-06,1808.4,1808.3,1.82413]
[1743793063390,2.78e-06,1808.4,1808.3,2.5876347]
[1743793063895,2.78e-06,1808.4,1808.3,1.82413]
[1743793065089,2.78e-06,1808.4,1808.3,2.58789756]
[1743793065289,2.78e-06,1808.4,1808.3,1.82413]
[1743793065893,1.10643,1808.3,1808.2,2.2372]
[1743793066294,2.78e-06,1808.4,1808.3,1.10643]
[1743793067395,2.78e-06,1808.4,1808.2,2.2372]
[1743793067595,1.10638278,1808.4,1808.3,1.10643]
[1743793067797,2.78e-06,1808.4,1808.3,1.10643]
[1743793069699,2.78e-06,1808.4,1808.3,7.57816874]
[1743793069891,2.78e-06,1808.4,1808.3,8.32076874]
[1743793070291,2.78e-06,1808.4,1808.3,9.74076874]
[1743793071592,2.78e-06,1808.4,1808.3,7.24076874]
[1743793072294,2.78e-06,1808.4,1808.3,3.26903]
[1743793075190,1.10637278,1808.4,1808.3,3.26903]
[1743793075403,2.78e-06,1808.4,1808.3,1.42]
[1743793075702,2.78e-06,1808.4,1808.2,1.83757]
[1743793075703,1.10647,1808.3,1808.2,1.10649]
[1743793075891,6.47067,1808.3,1808.2,1.10649]
[1743793076097,5.9178,1808.3,1808.2,1.10649]
[1743793076895,7.02423,1808.3,1808.1,2.64909]
[1743793077104,7.02423,1808.3,1808.1,1.5426]
[1743793077301,1.4332,1808.2,1808.1,2.64915]
[1743793079196,2.53969,1808.2,1808.1,2.64915]
[1743793079597,2.53969,1808.2,1808.1,1.5426]
[1743793079798,3.29709,1808.2,1808.1,1.5426]
[1743793080001,0.5536,1808.3,1808.2,1.10649]
[1743793080403,0.5536,1808.3,1808.2,2.64299]
[1743793080703,2.78e-06,1808.4,1808.2,2.2427]
[1743793080704,1.10641278,1808.4,1808.2,2.2427]
[1743793081006,1.10641278,1808.4,1808.0,2.76648]
[1743793081007,1.10652,1808.2,1808.0,1.10661]
[1743793081205,1.10649,1808.2,1808.1,1.4576]
[1743793081508,2.2799,1808.2,1808.1,1.10655]
[1743793081908,3.38643,1808.2,1808.0,1.4576]
[1743793082108,3.38643,1808.2,1808.1,1.10655]
[1743793082601,3.931,1808.3,1808.2,1.10649]
[1743793083205,1.10649,1808.2,1808.1,1.4576]
[1743793083399,2.63579,1808.2,1808.1,1.4576]
[1743793083599,2.63579,1808.2,1808.1,2.56415]
[1743793083804,2.63579,1808.2,1808.1,1.4576]
[1743793084005,1.10655,1808.1,1808.0,1.10656]
[1743793084209,2.60215,1808.1,1808.0,1.10656]
[1743793084506,1.4956,1808.1,1807.9,1.445]
[1743793084707,2.60218,1808.1,1807.9,1.445]
[1743793084914,1.4956,1808.1,1808.0,1.10661]
[1743793085109,1.83324,1808.2,1808.1,1.10655]
[1743793085309,3.32884,1808.2,1808.1,1.10655]
[1743793085809,2.2223,1808.2,1808.1,1.10655]
[1743793086218,3.32879,1808.2,1808.1,1.10655]
[1743793087006,2.2223,1808.2,1808.1,1.10655]
[1743793087311,0.7267,1808.2,1808.1,1.8716019]
[1743793087610,5.3644,1808.3,1808.2,1.10649]
[1743793087811,1.4344,1808.3,1808.2,2.54999]
[1743793088014,5.3644,1808.3,1808.2,2.54999]
[1743793088211,5.3644,1808.3,1808.2,1.4435]
[1743793088510,6.47083,1808.3,1808.2,1.4435]
[1743793088711,1.10653,1808.2,1808.0,1.10655]
[1743793089019,1.4344,1808.2,1808.1,1.10655]
[1743793089315,2.54089,1808.2,1808.1,1.10655]
[1743793089504,2.54089,1808.2,1808.0,2.55006]
[1743793090316,2.54092,1808.2,1808.1,1.10655]
[1743793090511,2.7664,1808.1,1807.8,1.4829]
[1743793090810,1.10671,1807.9,1807.8,1.10673]
[1743793091003,1.10671,1807.9,1807.6,1.5085]
[1743793091202,3.2078,1807.8,1807.4,1.10694]
[1743793091414,1.10685,1807.6,1807.5,0.76547728]
[1743793091605,1.10688,1807.6,1807.4,1.5085]
[1743793091803,3.31058,1807.6,1807.4,1.5085]
[1743793092008,3.31058,1807.6,1807.5,1.10692]
[1743793092311,2.2037,1807.6,1807.5,1.10692]
[1743793092812,3.93,1807.7,1807.6,1.10685]
[1743793093114,4.31457,1807.8,1807.6,0.76491477]
[1743793093411,4.31457,1807.8,1807.7,1.5427]
[1743793093607,1.10687,1807.6,1807.3,5.97538]
[1743793093812,1.10685,1807.6,1807.5,1.10689]
[1743793094008,1.5287,1807.7,1807.4,2.64963]
[1743793094211,3.2078,1807.5,1807.2,0.7094]
[1743793094409,1.1071,1807.2,1807.1,1.84104]